bitfinex/quotes_ETHUSD_20251010
["timestamp","ask_amount","ask_price","bid_price","bid_amount"]
[1760064033635,2.965,4373.8,4373.5,2.28649569]
[1760064034303,2.965,4373.8,4373.4,2.28654465]
[1760064034705,0.02283225,4373.7,4373.3,2.28660035]
[1760064035631,6.459,4373.6,4373.3,2.28660035]
[1760064035838,0.459,4373.8,4373.3,2.28660035]
[1760064036037,6.459,4373.5,4373.1,2.28667797]
[1760064036214,6.459,4373.4,4373.2,2.28665129]
[1760064039137,6.459,4373.4,4373.2,2.40025129]
[1760064039541,6.459,4373.4,4373.3,2.28660279]
[1760064039838,6.459,4373.4,4373.2,2.40024915]
[1760064041141,8.838,4373.3,4373.2,0.1136]
[1760064042007,9.297,4373.3,4373.2,0.1136]
[1760064042711,8.838,4373.3,4373.2,0.1136]
[1760064043544,8.838,4373.3,4373.2,2.40025508]
[1760064043904,8.838,4373.3,4373.2,0.1136]
[1760064044343,8.838,4373.3,4373.2,2.40025508]
[1760064044540,8.838,4373.3,4373.2,0.1136]
[1760064044713,8.838,4373.3,4373.2,2.40025508]
[1760064045239,8.838,4373.3,4373.2,2.77715508]
[1760064045540,0.1206,4373.9,4373.2,0.4905]
[1760064045706,0.007,4373.9,4373.7,2.28639259]
[1760064045906,3.428,4373.8,4373.7,2.28639259]
[1760064046741,3.428,4373.8,4373.5,7.6741573]
[1760064046940,3.428,4373.8,4373.5,7.2972573]
[1760064047131,3.428,4373.8,4373.5,7.6741573]
[1760064047330,3.428,4373.8,4373.6,2.28643555]
[1760064047562,3.428,4373.8,4373.7,2.28639367]
[1760064048064,3.428,4373.8,4373.7,2.66329367]
[1760064048362,3.428,4373.8,4373.7,4.58329367]
[1760064048539,3.428,4373.8,4373.7,4.69689367]
[1760064050629,0.007,4373.9,4373.8,2.28634139]
[1760064050947,8.844,4373.9,4373.8,2.28634139]
[1760064052666,8.844,4373.9,4373.8,7.20641327]
[1760064052970,8.844,4373.9,4373.8,7.56044986]
[1760064053534,0.007,4373.9,4373.8,9.48044986]
[1760064053792,2.648,4373.9,4373.8,9.48044986]
[1760064061091,0.007,4373.9,4373.8,9.48044986]
[1760064061389,2.438,4373.9,4373.8,4.20634139]
[1760064061589,2.438,4373.9,4373.8,9.10354986]
[1760064061790,2.438,4373.9,4373.8,9.48044986]
[1760064062709,2.438,4373.9,4373.8,4.58324139]
[1760064062879,2.438,4373.9,4373.8,4.20634139]
[1760064063812,2.438,4373.9,4373.8,4.58324139]
[1760064065078,2.438,4373.9,4373.8,9.48044986]
[1760064075225,0.007,4373.9,4373.8,9.48044986]
[1760064075428,6.961,4373.9,4373.8,9.48044986]
[1760064076717,0.007,4373.9,4373.8,9.48044986]
[1760064087455,0.007,4373.9,4373.8,4.58324139]
[1760064088146,0.007,4373.9,4373.8,4.6061048]
[1760064088345,0.007,4373.9,4373.8,4.7197048]
[1760064088656,1e-08,4373.9,4373.8,5.38339916]
[1760064089165,1e-08,4373.9,4373.8,5.85070763]
[1760064102693,1e-08,4373.9,4373.8,5.73710763]
[1760064105993,1e-08,4373.9,4373.8,5.73810763]
[1760064112698,1e-08,4373.9,4373.8,5.85170763]
[1760064120493,0.002,4374.4,4373.9,1.92]
[1760064120700,0.002,4374.4,4374.3,10.07875986]
[1760064121195,0.002,4374.4,4374.3,10.54718895]
[1760064126321,1e-08,4374.6,4374.5,2.28597554]
[1760064126496,1e-08,4374.6,4374.5,2.30883529]
[1760064126839,1e-08,4374.6,4374.5,4.60573529]
[1760064128014,1e-08,4374.6,4374.5,4.69725873]
[1760064128226,1e-08,4374.6,4374.5,4.67439898]
[1760064130813,0.002,4375.3,4375.0,2.28571428]
[1760064131014,0.002,4375.3,4375.0,10.10125123]
[1760064131219,0.002,4375.3,4375.0,10.45529409]
[1760064131408,2.38,4376.2,4375.4,2.28550532]
[1760064131604,0.002,4376.2,4375.4,10.10104018]
[1760064131804,0.002,4376.2,4375.8,2.2852964]
[1760064132005,0.002,4376.2,4375.8,9.98722917]
[1760064132227,0.002,4376.2,4375.8,10.07797621]
[1760064132429,0.002,4376.2,4375.8,10.45487621]
[1760064132634,0.002,4376.2,4375.8,10.57051669]
[1760064132931,0.002,4376.2,4375.8,10.66201145]
[1760064138432,0.002,4376.2,4376.0,2.28519195]
[1760064139025,0.002,4376.2,4376.0,4.58209195]
[1760064139225,0.002,4376.2,4376.0,4.67358545]
[1760064140210,0.002,4376.4,4376.1,4.20513973]
[1760064140404,0.002,4376.4,4376.3,10.21641511]
[1760064140645,0.005,4377.9,4376.6,2.28487867]
[1760064140936,0.005,4377.9,4376.4,1.92]
[1760064140937,0.005,4377.9,4377.8,10.07693217]
[1760064141438,2.514,4377.9,4377.8,10.45383217]
[1760064141644,2.514,4377.9,4377.8,10.56743217]
[1760064142147,0.005,4377.9,4377.8,10.56743217]
[1760064145550,0.007,4377.9,4377.8,10.56743217]
[1760064147628,0.007,4377.9,4377.8,9.69223393]
[1760064148356,0.007,4377.9,4377.8,9.31533393]
[1760064148652,0.02983225,4377.9,4377.8,2.0336]
[1760064148855,0.48833225,4377.9,4377.8,2.0336]
[1760064149833,0.48833225,4377.9,4376.9,4.88388157]
[1760064149834,0.70273225,4377.9,4376.6,4.58177867]
[1760064150167,0.4585,4377.8,4377.5,0.1136]
[1760064150352,0.02283225,4377.7,4377.5,0.1136]
[1760064150669,0.48133225,4377.7,4377.5,0.1136]
[1760064151050,0.4585,4377.6,4377.5,0.1136]
[1760064151247,0.4585,4377.6,4377.2,0.1136]
[1760064151547,0.02283225,4377.5,4377.2,0.1136]
[1760064151950,0.4585,4377.4,4377.2,0.1136]
[1760064152330,0.4585,4377.3,4377.2,0.1136]
[1760064153475,0.4585,4377.3,4375.9,4.88388157]
[1760064153656,2.28468175,4377.0,4376.0,0.68632217]
[1760064153956,0.48133225,4376.9,4376.3,0.1136]
[1760064155267,2.76607842,4376.9,4376.3,0.1136]
[1760064155668,0.48133225,4376.9,4376.3,0.1136]
[1760064157173,2.7660689,4376.9,4376.3,0.1136]
[1760064159086,0.48133225,4376.9,4376.3,0.1136]
[1760064160649,2.28482908,4376.7,4376.3,0.1136]
[1760064160851,0.4585,4376.6,4375.8,0.68634258]
[1760064161085,6.9075,4376.5,4376.0,0.1136]
[1760064161254,2.377,4376.4,4376.0,0.1136]
[1760064161590,2.39983225,4376.4,4376.0,0.1136]
[1760064161795,0.4585,4376.3,4376.0,0.1136]
[1760064161953,0.02283225,4376.2,4376.0,0.1136]
[1760064162153,0.4585,4376.1,4376.0,0.1136]
[1760064163384,0.4585,4376.1,4375.0,4.88388157]
[1760064163587,0.02283225,4376.0,4375.7,0.1136]
[1760064163755,6.9085,4375.9,4375.7,0.1136]
[1760064163950,0.48133225,4375.8,4375.7,0.1136]
[1760064164775,0.02283225,4375.8,4375.7,0.1136]
[1760064166297,0.02283225,4375.8,4375.7,2.39894862]
[1760064167861,0.02283225,4375.8,4375.7,0.1136]
[1760064173589,0.02283225,4375.8,4375.7,2.39894862]
[1760064175335,0.02283225,4375.8,4375.7,0.1136]
[1760064177616,0.45363225,4375.8,4375.7,0.1136]
[1760064179125,0.02283225,4375.8,4375.7,0.1136]
[1760064180951,0.45363225,4375.8,4375.7,0.1136]
[1760064181778,0.02283225,4375.8,4375.7,0.1136]
[1760064187231,0.45363225,4375.8,4375.7,0.1136]
[1760064188031,0.02283225,4375.8,4375.7,0.1136]
[1760064190866,0.02283225,4375.8,4375.7,2.39894862]
[1760064191572,0.02283225,4375.8,4375.7,0.1136]
[1760064192074,0.45363225,4375.8,4375.7,0.1136]
[1760064194990,0.68493225,4375.8,4375.6,0.001]
[1760064195282,2.28534862,4375.7,4375.6,0.001]
[1760064195484,2.91894862,4375.7,4375.6,0.001]
[1760064195657,2.28545309,4375.5,4375.4,0.001]
[1760064195858,2.28545309,4375.5,4374.5,0.001]
[1760064195859,0.6336,4375.0,4374.5,0.001]
[1760064196061,5.1562308,4375.5,4374.5,0.001]
[1760064196062,0.02283225,4374.9,4374.5,0.001]
[1760064196390,4.93,4374.9,4374.5,0.001]
[1760064196700,8.828,4374.9,4374.5,0.001]
[1760064197165,8.828,4374.9,4374.5,2.28696098]
[1760064198559,9.2588,4374.9,4374.5,0.001]
[1760064198985,11.54456653,4374.9,4374.5,0.001]
[1760064199992,12.17816653,4374.9,4374.5,0.001]
[1760064201453,17.0620481,4374.9,4374.5,0.001]
[1760064204593,18.9820481,4374.9,4374.5,0.001]
[1760064204767,19.47228353,4374.9,4374.5,0.001]
[1760064205982,24.3561651,4374.9,4374.5,0.001]
[1760064206184,19.47228353,4374.9,4374.5,0.001]
[1760064206500,19.56386837,4374.9,4374.5,0.001]
[1760064207064,24.44774994,4374.9,4374.5,0.001]
[1760064208383,2.91952328,4374.6,4374.5,0.001]
[1760064208590,16.68847253,4374.6,4374.5,0.001]
[1760064208788,2.28618458,4374.1,4374.0,0.001]
[1760064208965,28.0914984,4374.1,4374.0,0.001]
[1760064209166,28.53536615,4374.1,4374.0,0.001]
[1760064209592,29.99797992,4374.1,4374.0,0.001]
[1760064211520,29.50918834,4374.1,4374.0,0.001]
[1760064214719,5.39808494,4374.1,4374.0,0.001]
[1760064214999,2.75288458,4374.1,4374.0,0.001]
[1760064215204,21.10288458,4374.1,4374.0,0.001]
[1760064215501,21.73648458,4374.1,4374.0,0.001]
[1760064216598,3.38648458,4374.1,4374.0,0.001]
[1760064216810,21.76031683,4374.1,4374.0,0.001]
[1760064217011,21.73748458,4374.1,4374.0,0.001]
[1760064225432,22.22803758,4374.1,4374.0,0.001]
[1760064225596,21.73748458,4374.1,4374.0,0.001]
[1760064226398,22.22809493,4374.1,4374.0,0.001]
[1760064229050,1.59091035,4374.1,4374.0,0.001]
[1760064229226,7.6313,4374.1,4374.0,0.001]
[1760064230318,8.12259657,4374.1,4374.0,0.001]
[1760064230517,10.40878115,4374.1,4374.0,0.001]
[1760064230737,3.87778115,4374.1,4374.0,0.001]
[1760064230935,12.7336134,4374.1,4374.0,0.001]
[1760064231137,12.71078115,4374.1,4374.0,0.001]
[1760064231843,10.42459657,4374.1,4374.0,0.001]
[1760064232346,10.41769657,4374.1,4374.0,0.001]
[1760064233521,12.70388115,4374.1,4374.0,0.001]
[1760064236333,18.46998455,4374.1,4374.0,0.001]
[1760064236646,12.70388115,4374.1,4374.0,0.001]
[1760064242457,12.70588115,4374.1,4374.0,0.001]
[1760064243225,6.25188115,4374.1,4374.0,0.001]
[1760064243421,15.13628115,4374.1,4374.0,0.001]
[1760064243621,21.58928115,4374.1,4374.0,0.001]
[1760064243855,22.22288115,4374.1,4374.0,0.001]
[1760064246262,3.87288115,4374.1,4374.0,0.001]
[1760064246467,22.2467134,4374.1,4374.0,0.001]
[1760064246667,22.22388115,4374.1,4374.0,0.001]
[1760064247266,27.98998455,4374.1,4374.0,0.001]
[1760064247565,29.90998455,4374.1,4374.0,0.001]
[1760064247939,30.73002225,4374.1,4374.0,0.001]
[1760064248147,29.90998455,4374.1,4374.0,0.001]
[1760064253152,30.7297159,4374.1,4374.0,0.001]
[1760064256162,29.91098455,4374.1,4374.0,0.001]
[1760064262313,29.91198455,4374.1,4374.0,0.001]
[1760064263306,30.7317159,4374.1,4374.0,0.001]
[1760064266316,29.91198455,4374.1,4374.0,0.001]
[1760064266914,12.37919125,4374.1,4374.0,0.001]
[1760064267582,22.82338455,4374.1,4374.0,0.001]
[1760064267814,23.51228115,4374.1,4374.0,0.001]
[1760064268114,22.22588115,4374.1,4374.0,0.001]
[1760064269116,3.87288115,4374.1,4374.0,0.001]
[1760064269283,22.2487134,4374.1,4374.0,0.001]
[1760064269613,27.12259577,4374.1,4374.0,0.001]
[1760064271817,8.76959577,4374.1,4374.0,0.001]
[1760064271995,27.12159577,4374.1,4374.0,0.001]
[1760064272719,13.39188115,4374.1,4374.0,0.001]
[1760064272922,11.9,4374.1,4374.0,0.001]
[1760064273149,18.8214,4374.1,4374.0,0.001]
[1760064273525,19.455,4374.1,4374.0,0.001]
[1760064276218,21.74118458,4374.1,4374.0,0.001]
[1760064276418,19.455,4374.1,4374.0,0.001]
[1760064276622,21.74118458,4374.1,4374.0,0.001]
[1760064277175,19.455,4374.1,4374.0,0.001]
[1760064277618,21.74118458,4374.1,4374.0,0.001]
[1760064278746,19.455,4374.1,4374.0,0.001]
[1760064282126,21.74118458,4374.1,4374.0,0.001]
[1760064285271,19.455,4374.1,4374.0,0.001]
[1760064286670,21.74118458,4374.1,4374.0,0.001]
[1760064289451,22.23271432,4374.1,4374.0,0.001]
[1760064293689,22.23271432,4374.1,4373.5,0.001]
[1760064293690,2.91999367,4373.7,4373.5,0.001]
[1760064293997,11.93043801,4373.7,4373.5,0.001]
[1760064294314,17.76465012,4373.7,4373.5,0.001]
[1760064298293,17.15003803,4373.7,4373.5,0.001]
[1760064300204,3.88032341,4373.7,4373.5,0.001]
[1760064300401,15.77832341,4373.7,4373.5,0.001]
[1760064300574,22.23232341,4373.7,4373.5,0.001]
[1760064301111,27.12903803,4373.7,4373.5,0.001]
[1760064301400,27.12876956,4373.7,4373.5,0.001]
[1760064306583,3.88005494,4373.7,4373.5,0.001]
[1760064306781,27.13076956,4373.7,4373.5,0.001]
[1760064309491,8.77676956,4373.7,4373.5,0.001]
[1760064309728,27.12976956,4373.7,4373.5,0.001]
[1760064310296,10.33505494,4373.7,4373.5,0.001]
[1760064310501,22.23305494,4373.7,4373.5,0.001]
[1760064313103,24.15305494,4373.7,4373.5,0.001]
[1760064313515,24.15355897,4373.7,4373.5,0.001]
[1760064317006,24.76826559,4373.7,4373.5,0.001]
[1760064317207,24.15355897,4373.7,4373.5,0.001]
[1760064318037,24.76866036,4373.7,4373.5,0.001]
[1760064318346,24.15355897,4373.7,4373.5,0.001]
[1760064318846,24.76884915,4373.7,4373.5,0.001]
[1760064319146,24.15355897,4373.7,4373.5,0.001]
[1760064322032,11.51748029,4373.7,4373.5,0.001]
[1760064322237,29.05227359,4373.7,4373.5,0.001]
[1760064324960,5.80055897,4373.7,4373.5,0.001]
[1760064325158,24.15555897,4373.7,4373.5,0.001]
[1760064325463,29.05227359,4373.7,4373.5,0.001]
[1760064328742,29.87248029,4373.7,4373.5,0.001]
[1760064329465,29.14388297,4373.7,4373.5,0.001]
[1760064330992,26.76388297,4373.7,4373.5,0.001]
[1760064331162,38.66388297,4373.7,4373.5,0.001]
[1760064331496,40.0004925,4373.7,4373.5,0.001]
[1760064333789,41.22646935,4373.7,4373.5,0.001]
[1760064335844,4.95364594,4373.6,4373.3,0.001]
[1760064336135,4.8401505,4373.4,4373.3,0.001]
[1760064336318,5.3319158,4373.4,4373.3,0.001]
[1760064336492,5.90922436,4373.4,4373.3,0.001]
[1760064336688,6.37442436,4373.4,4373.3,0.001]
[1760064337091,6.46604129,4373.4,4373.3,0.001]
[1760064341836,7.28677101,4373.4,4373.3,0.001]
[1760064342028,25.50804129,4373.4,4373.3,0.001]
[1760064342240,34.34304129,4373.4,4373.3,0.001]
[1760064346451,35.16377101,4373.4,4373.3,0.001]
[1760064348476,34.34304129,4373.4,4373.3,0.001]
[1760064348664,35.16377101,4373.4,4373.3,0.001]
[1760064355276,34.34304129,4373.4,4373.3,0.001]
[1760064355451,35.16476623,4373.4,4373.3,0.001]
[1760064356467,34.34304129,4373.4,4373.3,0.001]
[1760064364096,2.5536,4373.3,4373.1,0.006]
[1760064364298,10.60636466,4373.0,4372.7,0.001]
[1760064364478,18.78602954,4373.0,4372.7,0.001]
[1760064364798,19.25112954,4373.0,4372.7,0.001]
[1760064365900,19.34275172,4373.0,4372.7,0.001]
[1760064366201,4.84062115,4372.5,4372.4,0.001]
[1760064366405,19.93339145,4372.5,4372.4,0.001]
[1760064366571,20.39849145,4372.5,4372.4,0.001]
[1760064370911,20.49012706,4372.5,4372.4,0.001]
[1760064371120,21.31171483,4372.5,4372.4,0.001]
[1760064371291,2.92077807,4372.2,4372.1,1e-08]
[1760064371498,10.71081013,4372.2,4372.1,1e-08]
[1760064371692,11.15307788,4372.2,4372.1,1e-08]
[1760064373329,4.84083039,4372.1,4371.1,0.005]
[1760064373621,11.09860069,4372.1,4371.9,0.001]
[1760064373821,11.56370069,4372.1,4371.9,0.001]
[1760064374118,4.9544827,4372.0,4371.9,0.001]
[1760064374318,2.92130131,4371.2,4371.1,0.005]
[1760064374523,27.06813856,4371.2,4371.1,0.005]
[1760064374718,28.00217161,4371.2,4371.1,0.005]
[1760064375309,28.1266397,4371.2,4371.1,0.005]
[1760064375511,0.6336,4371.0,4370.1,0.005]
[1760064375819,5.30182479,4370.2,4370.1,0.005]
[1760064376022,11.75782479,4370.2,4370.1,0.005]
[1760064376202,12.22292479,4370.2,4370.1,0.005]
[1760064382031,17.0797,4370.2,4370.1,0.005]
[1760064382217,19.4607,4370.2,4370.1,0.005]
[1760064382843,21.74892479,4370.2,4370.1,0.005]
[1760064384344,23.66892479,4370.2,4370.1,0.005]
[1760064384531,29.43492979,4370.2,4370.1,0.005]
[1760064385322,29.52660972,4370.2,4370.1,0.005]
[1760064387477,2.28843425,4369.8,4369.7,0.001]
[1760064387772,2.28843425,4369.8,4369.1,0.005]
[1760064387773,8.68835351,4369.2,4369.1,0.005]
[1760064387948,36.57935351,4369.2,4369.1,0.005]
[1760064388147,37.04345351,4369.2,4369.1,0.005]
[1760064388677,38.96345351,4369.2,4369.1,1e-08]
[1760064389172,39.45261396,4369.2,4369.1,1e-08]
[1760064389372,39.45246659,4369.2,4369.1,1e-08]
[1760064389984,39.57200626,4369.2,4369.1,1e-08]
[1760064391567,38.71570051,4369.2,4369.1,1e-08]
[1760064392678,38.71570051,4369.2,4369.1,0.00100001]
[1760064396067,4.84240089,4369.1,4368.6,0.001]
[1760064396288,7.83230971,4368.7,4368.6,0.001]
[1760064396494,14.29130971,4368.7,4368.6,0.001]
[1760064396699,14.75540971,4368.7,4368.6,0.001]
[1760064396999,14.84712684,4368.7,4368.6,0.001]
[1760064397405,15.33616357,4368.7,4368.6,0.001]
[1760064401318,17.25616357,4368.7,4368.6,0.001]
[1760064402716,17.25684581,4368.7,4368.6,0.001]
[1760064403215,17.86899453,4368.7,4368.6,0.001]
[1760064405432,17.25684581,4368.7,4368.6,0.001]
[1760064406796,10.79784581,4368.7,4368.6,0.001]
[1760064407002,38.70084581,4368.7,4368.6,0.001]
[1760064407231,39.31382542,4368.7,4368.6,0.001]
[1760064407436,38.70084581,4368.7,4368.6,0.001]
[1760064407592,10.79784581,4368.7,4368.6,0.001]
[1760064408041,38.70084581,4368.7,4368.6,0.001]
[1760064411049,39.52031848,4368.7,4368.6,0.001]
[1760064412355,38.70084581,4368.7,4368.6,0.001]
[1760064412840,10.79784581,4368.7,4368.6,0.001]
[1760064413046,39.51961492,4368.7,4368.6,0.001]
[1760064413337,10.79784581,4368.7,4368.6,0.001]
[1760064413550,29.99113052,4368.7,4368.6,0.001]
[1760064414353,29.17184581,4368.7,4368.6,0.001]
[1760064416251,30.40419938,4368.7,4368.6,0.001]
[1760064417471,29.17184581,4368.7,4368.6,0.001]
[1760064421567,2.92282006,4368.3,4368.2,0.001]
[1760064421891,16.72607053,4368.3,4368.2,0.001]
[1760064422183,17.16823828,4368.3,4368.2,0.001]
[1760064422399,4.84287246,4368.2,4368.1,1e-08]
[1760064422552,5.33259143,4368.2,4368.1,1e-08]
[1760064422887,5.79759143,4368.2,4368.1,1e-08]
[1760064423389,2.92339666,4367.2,4367.1,0.005]
[1760064423631,26.71964713,4367.2,4367.1,0.005]
[1760064423886,27.16181488,4367.2,4367.1,0.005]
[1760064425905,27.28138594,4367.2,4367.1,0.005]
[1760064429296,27.28138594,4367.2,4367.1,0.006]
[1760064434915,29.20138594,4367.2,4367.1,0.006]
[1760064437511,29.20438594,4367.2,4367.1,0.006]
[1760064444720,0.465,4367.2,4367.1,0.006]
[1760064444893,21.13279666,4367.2,4367.1,0.006]
[1760064445101,0.465,4367.2,4367.1,0.006]
[1760064445300,19.4766,4367.2,4367.1,0.006]
[1760064445808,0.465,4367.5,4367.1,0.006]
[1760064446232,0.6336,4367.3,4367.1,0.006]
[1760064446436,7.0956,4367.2,4367.1,0.006]
[1760064446941,7.5511,4367.2,4367.1,0.006]
[1760064447129,8.15363641,4367.2,4367.1,0.006]
[1760064448617,7.69813641,4367.2,4367.1,0.006]
[1760064449544,7.0956,4367.2,4367.1,0.006]
[1760064449749,7.21,4367.2,4367.1,2.68074909]
[1760064450043,9.593,4367.2,4367.1,2.29584909]
[1760064450447,9.593,4367.2,4367.1,0.006]
[1760064453940,9.4786,4367.2,4367.1,2.68074909]
[1760064454443,0.6336,4367.4,4367.1,0.3909]
[1760064454643,8.845,4367.3,4367.2,0.3849]
[1760064454861,8.845,4367.3,4367.2,2.6746644]
[1760064455503,0.6336,4368.0,4367.3,2.28974423]
[1760064455832,0.1144,4368.0,4367.5,2.28962765]
[1760064456140,3.788,4367.9,4367.6,0.3849]
[1760064456442,0.6336,4367.8,4367.6,0.3849]
[1760064456738,0.1144,4368.0,4367.6,0.3849]
[1760064456739,0.1144,4368.0,4367.9,2.2894297]
[1760064456961,3.021,4368.0,4367.9,2.69722399]
[1760064457111,0.61713881,4368.1,4368.0,2.28937728]
[1760064457312,0.61713881,4368.1,4368.0,2.67427728]
[1760064457644,4.70113881,4368.1,4368.0,2.69717105]
[1760064457805,4.70113881,4368.1,4368.0,2.67427728]
[1760064458141,9.46113881,4368.1,4368.0,2.67427728]
[1760064458710,8.846,4368.1,4368.0,2.67427728]
[1760064458944,6.463,4368.1,4368.0,2.67427728]
[1760064459110,8.845,4368.1,4368.0,2.67427728]
[1760064459311,0.002,4368.1,4368.0,2.67427728]
[1760064459552,8.845,4368.1,4368.0,2.78867728]
[1760064461552,0.002,4368.1,4368.0,2.78867728]
[1760064461788,0.127,4368.1,4368.0,2.78867728]
[1760064461989,2.509,4368.1,4368.0,2.78867728]
[1760064463872,2.509,4368.1,4368.0,0.1144]
[1760064464592,2.509,4368.1,4368.0,2.40377728]
[1760064464799,2.509,4368.1,4368.0,2.78867728]
[1760064465408,0.002,4368.1,4368.0,2.78867728]
[1760064465910,2.908,4368.1,4368.0,4.70867728]
[1760064466113,3.023,4368.1,4368.0,4.70867728]
[1760064466411,5.405,4368.1,4368.0,2.0344]
[1760064466913,5.405,4368.1,4368.0,0.1144]
[1760064467090,0.6336,4368.0,4367.6,0.1144]
[1760064467611,0.6336,4368.0,4367.6,2.40398573]
[1760064467988,0.6336,4368.0,4367.6,0.1144]
[1760064468584,0.6336,4368.0,4367.6,2.40397865]
[1760064469111,0.02283225,4367.9,4367.1,0.006]
[1760064469290,0.47523225,4367.9,4367.1,2.29584772]
[1760064469901,0.47523225,4367.9,4367.5,0.001]
[1760064470904,0.02283225,4367.9,4367.5,0.001]
[1760064471304,2.31226555,4367.9,4367.5,0.001]
[1760064472782,7.762,4368.1,4367.8,0.3849]
[1760064473003,7.762,4368.1,4367.9,2.67432713]
[1760064473214,7.762,4368.1,4368.0,2.28937728]
[1760064473411,7.762,4368.1,4368.0,2.67427728]
[1760064473633,6.462,4368.1,4368.0,2.67427728]
[1760064473787,8.844,4368.1,4367.5,0.001]
[1760064474284,8.844,4368.1,4367.8,2.28946533]
[1760064474480,8.844,4368.1,4367.8,2.67436533]
[1760064476245,8.844,4368.1,4367.7,2.28953312]
[1760064476420,8.844,4368.1,4367.5,2.29061563]
[1760064476625,0.002,4368.1,4367.5,2.29061563]
[1760064476820,8.842,4368.0,4367.5,2.29061563]
[1760064477191,8.842,4368.0,4367.5,0.001]
[1760064477791,1.0614,4367.9,4367.5,0.001]
[1760064478196,0.6336,4367.7,4367.5,0.001]
[1760064478424,7.0936,4367.6,4367.5,0.001]
[1760064479043,7.5214,4367.6,4367.5,0.001]
[1760064480043,7.0936,4367.6,4367.5,0.001]
[1760064481833,7.5214,4367.6,4367.5,0.001]
[1760064482350,7.0936,4367.6,4367.5,0.001]
[1760064485124,7.5214,4367.6,4367.5,0.001]
[1760064485953,7.0936,4367.6,4367.5,0.001]
[1760064487951,0.6336,4367.6,4367.5,0.001]
[1760064488157,9.4756,4367.6,4367.5,0.001]
[1760064490467,9.4756,4367.6,4367.5,0.3859]
[1760064490669,0.002,4368.1,4367.5,0.5003]
[1760064490984,2.485,4368.0,4367.7,2.28953377]
[1760064491136,2.485,4368.0,4367.8,0.3849]
[1760064491336,2.485,4368.0,4367.8,2.40387533]
[1760064491556,2.485,4368.0,4367.9,0.3849]
[1760064491960,2.485,4368.0,4367.8,0.1144]
[1760064493787,2.485,4368.0,4367.8,2.4038813]
[1760064493976,2.485,4368.0,4367.8,2.7887813]
[1760064494171,2.485,4368.0,4367.9,0.3849]
[1760064494493,8.842,4368.0,4367.9,0.3849]
[1760064494701,8.842,4368.0,4367.8,2.4038813]
[1760064494702,0.6336,4367.9,4367.8,0.1144]
[1760064494860,0.6336,4367.9,4367.5,0.1154]
[1760064495721,0.6336,4367.7,4367.5,0.1154]
[1760064496025,6.46,4367.6,4367.5,0.1154]
[1760064501487,0.002,4368.1,4367.5,0.13829639]
[1760064501686,2.382,4368.0,4367.9,2.2894297]
[1760064501922,2.51,4368.0,4367.9,2.7887297]
[1760064504331,2.51,4368.0,4367.9,0.4993]
[1760064504624,2.51,4368.0,4367.9,2.7887297]
[1760064504828,3.1436,4368.0,4367.9,2.7887297]
[1760064508130,3.1436,4368.0,4367.9,0.1144]
[1760064508635,3.1436,4368.0,4367.9,2.4038297]
[1760064509435,3.1436,4368.0,4367.9,2.7887297]
[1760064510753,3.1436,4368.0,4367.9,0.4993]
[1760064511121,3.1436,4368.0,4367.9,2.7887297]
[1760064511747,3.1436,4368.0,4367.9,0.4993]
[1760064513018,3.1436,4368.0,4367.9,0.1144]
[1760064518966,3.1436,4368.0,4367.9,0.4993]
[1760064519331,3.1436,4368.0,4367.9,2.7887297]
[1760064519529,0.002,4368.1,4368.0,2.28937728]
[1760064519857,0.002,4368.1,4368.0,4.59427728]
[1760064519858,2.389,4368.1,4368.0,4.59427728]
[1760064522377,0.002,4368.1,4368.0,9.52540283]
[1760064522532,0.002,4368.1,4368.0,9.50250906]
[1760064523369,0.002,4368.1,4368.0,9.62035051]
[1760064526991,0.002,4368.6,4368.0,9.62035051]
[1760064526992,0.002,4368.6,4368.5,2.28911525]
[1760064527171,0.002,4368.6,4368.5,4.2320064]
[1760064527494,0.002,4368.6,4368.5,4.6169064]
[1760064528160,0.002,4368.6,4368.5,5.30430264]
[1760064528356,0.002,4368.6,4368.5,5.28141149]
[1760064528999,0.002,4369.0,4368.9,2.28890567]
[1760064529201,1e-08,4369.1,4369.0,4.20885328]
[1760064529488,1e-08,4369.1,4369.0,4.59375328]
[1760064530764,1e-08,4369.1,4369.0,5.28101409]
[1760064535488,1e-08,4369.1,4369.0,10.18924587]
[1760064536683,1e-08,4369.1,4369.0,10.30364587]
[1760064539272,1e-08,4369.1,4369.0,5.39541409]
[1760064547119,1e-08,4369.1,4369.0,5.39641409]
[1760064547815,1e-08,4369.1,4369.0,4.70915328]
[1760064548111,1e-08,4369.1,4369.0,4.8008017]
[1760064549688,1e-08,4369.1,4369.0,4.70915328]
[1760064549910,1e-08,4369.1,4369.0,0.1154]
[1760064550111,1e-08,4369.1,4369.0,0.5003]
[1760064550311,1e-08,4369.1,4369.0,2.78915328]
[1760064550483,1e-08,4369.1,4369.0,4.70915328]
[1760064554692,1e-08,4369.1,4369.0,9.61738506]
[1760064561453,1e-08,4369.1,4369.0,2.0354]
[1760064561849,1e-08,4369.1,4369.0,2.4203]
[1760064562172,1e-08,4369.1,4369.0,4.70915328]
[1760064569463,1e-08,4369.1,4369.0,9.61738506]
[1760064569664,1e-08,4369.1,4369.0,10.30469626]
[1760064569868,1e-08,4369.1,4369.0,5.39646448]
[1760064575481,1e-08,4369.1,4369.0,11.16636885]
[1760064581984,1e-08,4369.1,4369.0,5.39646448]
[1760064582206,1e-08,4369.1,4369.0,11.16636885]